[Event "Titled Tuesday Blitz November 29 Early 2022"]
[White "Dudzinski, Pawel"]
[Black "Berezin, Viktor"]
[WhiteFideId "1117890"]
[BlackFideId "14107872"]
[WhiteElo "2086"]
[BlackElo "2310"]
[Result "0-1"]
[Round "03"]
[TimeControl "180+1"]
[Date "2022.11.30"]
[WhiteClock "0:00:02"]
[BlackClock "0:00:33"]

1. e4 {[%clk 0:02:57]}  c6 {[%clk 0:02:59]} 2. d4 {[%clk 0:02:56]}  d5 {[%clk 0:02:54]} 3. exd5 {[%clk 0:02:57]}  cxd5 {[%clk 0:02:54]} 4. Bd3 {[%clk 0:02:58]}  Nc6 {[%clk 0:02:51]} 5. c3 {[%clk 0:02:59]}  Qc7 {[%clk 0:02:50]} 6. Ne2 {[%clk 0:02:58]}  Nf6 {[%clk 0:02:48]} 7. O-O {[%clk 0:02:56]}  g6 {[%clk 0:02:46]} 8. Bf4 {[%clk 0:02:52]}  Qb6 {[%clk 0:02:45]} 9. Qb3 {[%clk 0:02:45]}  Bf5 {[%clk 0:02:39]} 10. Qxb6 {[%clk 0:02:37]}  axb6 {[%clk 0:02:38]} 11. Bxf5 {[%clk 0:02:37]}  gxf5 {[%clk 0:02:37]} 12. Re1 {[%clk 0:02:16]}  e6 {[%clk 0:02:35]} 13. Ng3 {[%clk 0:02:13]}  Rg8 {[%clk 0:02:34]} 14. Nxf5 {[%clk 0:02:08]}  Kd7 {[%clk 0:02:30]} 15. Ng3 {[%clk 0:01:51]}  b5 {[%clk 0:02:30]} 16. Nd2 {[%clk 0:01:47]}  b4 {[%clk 0:02:29]} 17. Nb3 {[%clk 0:01:44]}  b6 {[%clk 0:02:23]} 18. Be5 {[%clk 0:01:30]}  Ne8 {[%clk 0:02:17]} 19. Rec1 {[%clk 0:01:19]}  f6 {[%clk 0:02:14]} 20. Bf4 {[%clk 0:01:19]}  Rg4 {[%clk 0:02:14]} 21. Be3 {[%clk 0:01:16]}  Nd6 {[%clk 0:02:09]} 22. h3 {[%clk 0:01:15]}  Rg8 {[%clk 0:02:08]} 23. Nd2 {[%clk 0:01:07]}  bxc3 {[%clk 0:01:49]} 24. Rxc3 {[%clk 0:01:06]}  Nb5 {[%clk 0:01:42]} 25. Rb3 {[%clk 0:01:02]}  Nbxd4 {[%clk 0:01:39]} 26. Bxd4 {[%clk 0:01:00]}  Nxd4 {[%clk 0:01:40]} 27. Rxb6 {[%clk 0:01:00]}  Bc5 {[%clk 0:01:35]} 28. Rb7+ {[%clk 0:00:58]}  Kc6 {[%clk 0:01:35]} 29. Rxh7 {[%clk 0:00:57]}  Rxg3 {[%clk 0:01:31]} 30. fxg3 {[%clk 0:00:46]}  Nc2+ {[%clk 0:01:31]} 31. Kh2 {[%clk 0:00:47]}  Nxa1 {[%clk 0:01:31]} 32. a3 {[%clk 0:00:47]}  Bd4 {[%clk 0:01:25]} 33. Re7 {[%clk 0:00:33]}  Kd6 {[%clk 0:01:14]} 34. Rb7 {[%clk 0:00:34]}  Nc2 {[%clk 0:01:11]} 35. Nf3 {[%clk 0:00:33]}  Be3 {[%clk 0:01:09]} 36. h4 {[%clk 0:00:26]}  d4 {[%clk 0:01:09]} 37. Rb3 {[%clk 0:00:23]}  Kd5 {[%clk 0:01:04]} 38. Rd3 {[%clk 0:00:18]}  Ke4 {[%clk 0:01:03]} 39. Rd1 {[%clk 0:00:18]}  d3 {[%clk 0:00:57]} 40. h5 {[%clk 0:00:15]}  f5 {[%clk 0:00:54]} 41. Kh3 {[%clk 0:00:15]}  Rb8 {[%clk 0:00:51]} 42. b4 {[%clk 0:00:13]}  Nxa3 {[%clk 0:00:50]} 43. g4 {[%clk 0:00:14]}  fxg4+ {[%clk 0:00:48]} 44. Kxg4 {[%clk 0:00:15]}  Rg8+ {[%clk 0:00:47]} 45. Kh3 {[%clk 0:00:14]}  Nc2 {[%clk 0:00:42]} 46. Nd2+ {[%clk 0:00:14]}  Bxd2 {[%clk 0:00:40]} 47. Rxd2 {[%clk 0:00:14]}  Ke3 {[%clk 0:00:41]} 48. Rd1 {[%clk 0:00:15]}  Ke2 {[%clk 0:00:41]} 49. Rc1 {[%clk 0:00:14]}  Kd2 {[%clk 0:00:41]} 50. Rb1 {[%clk 0:00:14]}  Ne3 {[%clk 0:00:41]} 51. b5 {[%clk 0:00:12]}  Kc2 {[%clk 0:00:41]} 52. Re1 {[%clk 0:00:11]}  d2 {[%clk 0:00:40]} 53. Re2 {[%clk 0:00:10]}  Kd3 {[%clk 0:00:39]} 54. Rxd2+ {[%clk 0:00:11]}  Kxd2 {[%clk 0:00:40]} 55. b6 {[%clk 0:00:02]}  Nf5 {[%clk 0:00:37]} 56. g4 {[%clk 0:00:01]}  Nh6 {[%clk 0:00:37]} 57. b7 {[%clk 0:00:01]}  Nxg4 {[%clk 0:00:36]} 58. b8=Q {[%clk 0:00:01]}  Nf2+ {[%clk 0:00:32]} 59. Kh4 {[%clk 0:00:01]}  Rxb8 {[%clk 0:00:32]} 60. Kg5 {[%clk 0:00:01]}  e5 {[%clk 0:00:33]} 61. h6 {[%clk 0:00:01]}  e4 {[%clk 0:00:33]} 62. h7 {[%clk 0:00:02]}  e3 {[%clk 0:00:34]} 63. h8=Q {[%clk 0:00:02]}  Rxh8 {[%clk 0:00:33]} 0-1


[Site "https://www.chess.com"]

[Event "Titled Tuesday Blitz November 29 Early 2022"]
[White "Durarbayli, Vasif"]
[Black "Gheorghiu, Calin"]
[WhiteFideId "13402935"]
[BlackFideId "1200305"]
[WhiteElo "2586"]
[BlackElo "2225"]
[Result "1-0"]
[Round "03"]
[TimeControl "180+1"]
[Date "2022.11.30"]
[WhiteClock "0:01:02"]
[BlackClock "0:00:03"]

1. e4 {[%clk 0:03:00]}  e5 {[%clk 0:02:55]} 2. Nf3 {[%clk 0:03:00]}  Nc6 {[%clk 0:02:52]} 3. Bb5 {[%clk 0:03:00]}  a6 {[%clk 0:02:44]} 4. Ba4 {[%clk 0:03:00]}  Nf6 {[%clk 0:02:40]} 5. O-O {[%clk 0:03:00]}  b5 {[%clk 0:02:34]} 6. Bb3 {[%clk 0:02:59]}  Be7 {[%clk 0:02:35]} 7. a4 {[%clk 0:02:57]}  Bb7 {[%clk 0:02:33]} 8. d3 {[%clk 0:02:53]}  O-O {[%clk 0:02:31]} 9. Nc3 {[%clk 0:02:52]}  Nd4 {[%clk 0:01:49]} 10. Nxe5 {[%clk 0:02:44]}  Nxb3 {[%clk 0:01:48]} 11. cxb3 {[%clk 0:02:45]}  b4 {[%clk 0:01:47]} 12. Ne2 {[%clk 0:02:44]}  d5 {[%clk 0:01:44]} 13. exd5 {[%clk 0:02:28]}  Nxd5 {[%clk 0:01:27]} 14. Ng3 {[%clk 0:02:24]}  Bf6 {[%clk 0:01:26]} 15. Ng4 {[%clk 0:02:17]}  Re8 {[%clk 0:01:20]} 16. Qf3 {[%clk 0:02:12]}  Rb8 {[%clk 0:01:07]} 17. Nh5 {[%clk 0:01:54]}  Bd4 {[%clk 0:01:02]} 18. Qg3 {[%clk 0:01:50]}  Kh8 {[%clk 0:00:43]} 19. Be3 {[%clk 0:01:37]}  Bxb2 {[%clk 0:00:38]} 20. Rab1 {[%clk 0:01:26]}  Bc3 {[%clk 0:00:38]} 21. d4 {[%clk 0:01:25]}  Re6 {[%clk 0:00:33]} 22. Ne5 {[%clk 0:01:10]}  Qg8 {[%clk 0:00:23]} 23. Qh3 {[%clk 0:01:10]}  Bc8 {[%clk 0:00:11]} 24. Qf3 {[%clk 0:01:07]}  Nf6 {[%clk 0:00:09]} 25. Nf4 {[%clk 0:01:04]}  Bb7 {[%clk 0:00:08]} 26. Qh3 {[%clk 0:01:02]}  Ree8 {[%clk 0:00:06]} 27. Nfg6+ {[%clk 0:01:01]}  fxg6 {[%clk 0:00:03]} 28. Nxg6# {[%clk 0:01:02]} 1-0


[Site "https://www.chess.com"]

[Event "Titled Tuesday Blitz November 29 Early 2022"]
[White "Dushyant Sharma"]
[Black "Urquhart, Ed"]
[WhiteFideId "25065130"]
[BlackFideId "2603748"]
[WhiteElo "2270"]
[BlackElo "2184"]
[Result "1-0"]
[Round "03"]
[TimeControl "180+1"]
[Date "2022.11.30"]
[WhiteClock "0:00:22"]
[BlackClock "0:00:14"]

1. e4 {[%clk 0:02:57]}  c5 {[%clk 0:02:59]} 2. Nf3 {[%clk 0:02:56]}  e6 {[%clk 0:03:00]} 3. d4 {[%clk 0:02:57]}  cxd4 {[%clk 0:03:00]} 4. Nxd4 {[%clk 0:02:58]}  Nc6 {[%clk 0:03:01]} 5. Nc3 {[%clk 0:02:58]}  Qc7 {[%clk 0:03:01]} 6. f4 {[%clk 0:02:58]}  a6 {[%clk 0:02:58]} 7. Be3 {[%clk 0:02:54]}  d6 {[%clk 0:02:53]} 8. Bd3 {[%clk 0:02:51]}  Nf6 {[%clk 0:02:53]} 9. O-O {[%clk 0:02:51]}  Be7 {[%clk 0:02:54]} 10. Kh1 {[%clk 0:02:49]}  b5 {[%clk 0:02:54]} 11. a3 {[%clk 0:02:49]}  Bb7 {[%clk 0:02:54]} 12. Nf3 {[%clk 0:02:48]}  g6 {[%clk 0:02:52]} 13. Qe1 {[%clk 0:02:48]}  h5 {[%clk 0:02:52]} 14. f5 {[%clk 0:02:42]}  gxf5 {[%clk 0:02:51]} 15. exf5 {[%clk 0:02:43]}  e5 {[%clk 0:02:52]} 16. Rd1 {[%clk 0:02:40]}  Rg8 {[%clk 0:02:25]} 17. Bg5 {[%clk 0:02:35]}  Rxg5 {[%clk 0:02:17]} 18. Nxg5 {[%clk 0:02:36]}  d5 {[%clk 0:02:01]} 19. a4 {[%clk 0:02:12]}  b4 {[%clk 0:02:01]} 20. Nxd5 {[%clk 0:02:10]}  Nxd5 {[%clk 0:01:59]} 21. Bc4 {[%clk 0:02:11]}  O-O-O {[%clk 0:01:48]} 22. Nxf7 {[%clk 0:02:10]}  Nf4 {[%clk 0:01:33]} 23. Nxd8 {[%clk 0:02:07]}  Nxd8 {[%clk 0:01:34]} 24. Rxf4 {[%clk 0:01:44]}  exf4 {[%clk 0:01:32]} 25. Be6+ {[%clk 0:01:27]}  Kb8 {[%clk 0:01:20]} 26. Rd7 {[%clk 0:01:10]}  Qc6 {[%clk 0:01:20]} 27. Qe5+ {[%clk 0:01:05]}  Ka8 {[%clk 0:01:16]} 28. Rxb7 {[%clk 0:01:04]}  Nxb7 {[%clk 0:01:05]} 29. Bd5 {[%clk 0:01:04]}  Bf6 {[%clk 0:00:23]} 30. Qe4 {[%clk 0:00:57]}  Qc7 {[%clk 0:00:23]} 31. Qxb4 {[%clk 0:00:48]}  Ka7 {[%clk 0:00:20]} 32. h3 {[%clk 0:00:44]}  Nc5 {[%clk 0:00:19]} 33. b3 {[%clk 0:00:33]}  Qd6 {[%clk 0:00:19]} 34. c4 {[%clk 0:00:31]}  Qb6 {[%clk 0:00:18]} 35. Qe1 {[%clk 0:00:30]}  Qxb3 {[%clk 0:00:11]} 36. Qe8 {[%clk 0:00:30]}  Qb8 {[%clk 0:00:03]} 37. Qf7+ {[%clk 0:00:27]}  Kb6 {[%clk 0:00:01]} 38. Qxf6+ {[%clk 0:00:27]}  Ka5 {[%clk 0:00:02]} 39. Qc6 {[%clk 0:00:14]}  Nd3 {[%clk 0:00:01]} 40. c5 {[%clk 0:00:11]}  f3 {[%clk 0:00:01]} 41. Qb6+ {[%clk 0:00:10]}  Qxb6 {[%clk 0:00:01]} 42. cxb6 {[%clk 0:00:11]}  fxg2+ {[%clk 0:00:02]} 43. Bxg2 {[%clk 0:00:10]}  Kxb6 {[%clk 0:00:03]} 44. f6 {[%clk 0:00:09]}  Ne5 {[%clk 0:00:03]} 45. Bd5 {[%clk 0:00:10]}  Nd7 {[%clk 0:00:02]} 46. f7 {[%clk 0:00:09]}  Nf8 {[%clk 0:00:02]} 47. Be4 {[%clk 0:00:09]}  a5 {[%clk 0:00:03]} 48. Bf5 {[%clk 0:00:10]}  Kc5 {[%clk 0:00:03]} 49. Kg2 {[%clk 0:00:11]}  Kd6 {[%clk 0:00:04]} 50. Kf3 {[%clk 0:00:11]}  Ke7 {[%clk 0:00:05]} 51. Kf4 {[%clk 0:00:12]}  Kxf7 {[%clk 0:00:05]} 52. Kg5 {[%clk 0:00:12]}  Kg7 {[%clk 0:00:05]} 53. Kxh5 {[%clk 0:00:12]}  Kf6 {[%clk 0:00:05]} 54. Kg4 {[%clk 0:00:13]}  Kg7 {[%clk 0:00:05]} 55. Kg5 {[%clk 0:00:13]}  Nh7+ {[%clk 0:00:06]} 56. Bxh7 {[%clk 0:00:13]}  Kxh7 {[%clk 0:00:07]} 57. Kf5 {[%clk 0:00:14]}  Kh6 {[%clk 0:00:08]} 58. Ke5 {[%clk 0:00:15]}  Kh5 {[%clk 0:00:08]} 59. Kd5 {[%clk 0:00:15]}  Kh4 {[%clk 0:00:09]} 60. Kc5 {[%clk 0:00:16]}  Kxh3 {[%clk 0:00:10]} 61. Kb5 {[%clk 0:00:17]}  Kg4 {[%clk 0:00:11]} 62. Kxa5 {[%clk 0:00:18]}  Kf5 {[%clk 0:00:12]} 63. Kb6 {[%clk 0:00:19]}  Ke6 {[%clk 0:00:13]} 64. a5 {[%clk 0:00:20]}  Kd7 {[%clk 0:00:14]} 65. Kb7 {[%clk 0:00:21]}  Kd6 {[%clk 0:00:14]} 66. a6 {[%clk 0:00:22]} 1-0


[Site "https://www.chess.com"]

[Event "Titled Tuesday Blitz November 29 Early 2022"]
[White "Estrada Nieto, Julian"]
[Black "Bacrot, Etienne"]
[WhiteFideId "5101018"]
[BlackFideId "605506"]
[WhiteElo "2221"]
[BlackElo "2666"]
[Result "0-1"]
[Round "03"]
[TimeControl "180+1"]
[Date "2022.11.30"]
[WhiteClock "0:00:01"]
[BlackClock "0:00:14"]

1. e4 {[%clk 0:03:00]}  c5 {[%clk 0:02:56]} 2. Nf3 {[%clk 0:03:01]}  d6 {[%clk 0:02:56]} 3. Bb5+ {[%clk 0:03:00]}  Nd7 {[%clk 0:02:55]} 4. d4 {[%clk 0:02:59]}  cxd4 {[%clk 0:02:55]} 5. Qxd4 {[%clk 0:03:00]}  a6 {[%clk 0:02:54]} 6. Bxd7+ {[%clk 0:03:01]}  Qxd7 {[%clk 0:02:54]} 7. Nc3 {[%clk 0:03:01]}  e6 {[%clk 0:02:54]} 8. a4 {[%clk 0:02:46]}  Ne7 {[%clk 0:02:53]} 9. O-O {[%clk 0:02:42]}  Nc6 {[%clk 0:02:53]} 10. Qd3 {[%clk 0:02:26]}  Be7 {[%clk 0:02:52]} 11. Bf4 {[%clk 0:02:26]}  O-O {[%clk 0:02:50]} 12. Rfd1 {[%clk 0:02:23]}  Rd8 {[%clk 0:02:49]} 13. Qc4 {[%clk 0:01:44]}  Qe8 {[%clk 0:02:41]} 14. a5 {[%clk 0:01:41]}  h6 {[%clk 0:02:36]} 15. Qb3 {[%clk 0:01:28]}  Bf8 {[%clk 0:02:29]} 16. h3 {[%clk 0:01:22]}  Rb8 {[%clk 0:02:23]} 17. Be3 {[%clk 0:01:22]}  b5 {[%clk 0:02:00]} 18. axb6 {[%clk 0:01:21]}  Bb7 {[%clk 0:02:01]} 19. Rd2 {[%clk 0:01:03]}  Rdc8 {[%clk 0:01:56]} 20. Bf4 {[%clk 0:00:55]}  Qd8 {[%clk 0:01:42]} 21. Rad1 {[%clk 0:00:54]}  Na5 {[%clk 0:01:36]} 22. Qa2 {[%clk 0:00:49]}  Nc4 {[%clk 0:01:36]} 23. Rd4 {[%clk 0:00:42]}  Nxb6 {[%clk 0:01:27]} 24. Bxd6 {[%clk 0:00:40]}  Bxd6 {[%clk 0:01:27]} 25. Rxd6 {[%clk 0:00:40]}  Qc7 {[%clk 0:01:28]} 26. Qa5 {[%clk 0:00:23]}  Nc4 {[%clk 0:01:24]} 27. Rd8+ {[%clk 0:00:18]}  Qxd8 {[%clk 0:01:24]} 28. Rxd8+ {[%clk 0:00:16]}  Rxd8 {[%clk 0:01:24]} 29. Qb4 {[%clk 0:00:09]}  Rdc8 {[%clk 0:01:18]} 30. Qe7 {[%clk 0:00:07]}  Re8 {[%clk 0:01:13]} 31. Qb4 {[%clk 0:00:06]}  Rec8 {[%clk 0:00:53]} 32. Qe7 {[%clk 0:00:05]}  Ba8 {[%clk 0:00:42]} 33. b3 {[%clk 0:00:04]}  Rb7 {[%clk 0:00:38]} 34. Qh4 {[%clk 0:00:02]}  Na3 {[%clk 0:00:36]} 35. Ne2 {[%clk 0:00:02]}  Nxc2 {[%clk 0:00:35]} 36. Ned4 {[%clk 0:00:02]}  Nxd4 {[%clk 0:00:35]} 37. Nxd4 {[%clk 0:00:02]}  Rb4 {[%clk 0:00:30]} 38. Nf3 {[%clk 0:00:02]}  Rxe4 {[%clk 0:00:28]} 39. Qg3 {[%clk 0:00:02]}  Rb4 {[%clk 0:00:23]} 40. Kh2 {[%clk 0:00:02]}  Rxb3 {[%clk 0:00:19]} 41. Qg4 {[%clk 0:00:02]}  Bxf3 {[%clk 0:00:19]} 42. gxf3 {[%clk 0:00:03]}  Rb2 {[%clk 0:00:17]} 43. Kg2 {[%clk 0:00:03]}  Rcc2 {[%clk 0:00:18]} 44. Qd4 {[%clk 0:00:01]}  Rxf2+ {[%clk 0:00:17]} 45. Kg3 {[%clk 0:00:02]}  Rg2+ {[%clk 0:00:18]} 46. Kf4 {[%clk 0:00:02]}  Rgd2 {[%clk 0:00:18]} 47. Qc5 {[%clk 0:00:02]}  Rd8 {[%clk 0:00:15]} 48. Qc3 {[%clk 0:00:01]}  Rb5 {[%clk 0:00:14]} 49. Kg3 {[%clk 0:00:01]}  Rdb8 {[%clk 0:00:14]} 50. h4 {[%clk 0:00:01]}  a5 {[%clk 0:00:14]} 0-1


[Site "https://www.chess.com"]

[Event "Titled Tuesday Blitz November 29 Early 2022"]
[White "Gabdrakhmanov, Azat"]
[Black "Polanco Nunez, Yoel Estarling"]
[WhiteFideId "34189197"]
[BlackFideId "6401783"]
[WhiteElo "2254"]
[BlackElo "2132"]
[Result "1-0"]
[Round "03"]
[TimeControl "180+1"]
[Date "2022.11.30"]
[WhiteClock "0:00:23"]
[BlackClock "0:00:44"]

1. e4 {[%clk 0:03:00]}  c5 {[%clk 0:02:50]} 2. Nf3 {[%clk 0:03:00]}  d6 {[%clk 0:02:50]} 3. d4 {[%clk 0:03:00]}  cxd4 {[%clk 0:02:51]} 4. Nxd4 {[%clk 0:03:00]}  Nf6 {[%clk 0:02:52]} 5. Nc3 {[%clk 0:03:00]}  a6 {[%clk 0:02:53]} 6. Be3 {[%clk 0:02:59]}  e5 {[%clk 0:02:53]} 7. Nb3 {[%clk 0:02:59]}  Be7 {[%clk 0:02:54]} 8. f3 {[%clk 0:02:58]}  Be6 {[%clk 0:02:53]} 9. Qd2 {[%clk 0:02:58]}  h5 {[%clk 0:02:53]} 10. Nd5 {[%clk 0:02:58]}  Nxd5 {[%clk 0:02:52]} 11. exd5 {[%clk 0:02:59]}  Bf5 {[%clk 0:02:53]} 12. c4 {[%clk 0:02:58]}  Nd7 {[%clk 0:02:52]} 13. Be2 {[%clk 0:02:51]}  O-O {[%clk 0:02:49]} 14. O-O {[%clk 0:02:50]}  b6 {[%clk 0:02:50]} 15. a4 {[%clk 0:02:48]}  a5 {[%clk 0:02:50]} 16. Rae1 {[%clk 0:02:45]}  Nc5 {[%clk 0:02:48]} 17. Nxc5 {[%clk 0:02:42]}  bxc5 {[%clk 0:02:49]} 18. Bd1 {[%clk 0:02:41]}  Rb8 {[%clk 0:02:47]} 19. Qf2 {[%clk 0:02:36]}  Bd3 {[%clk 0:02:36]} 20. Be2 {[%clk 0:02:28]}  Bxe2 {[%clk 0:02:32]} 21. Qxe2 {[%clk 0:02:24]}  Rb4 {[%clk 0:02:33]} 22. Qc2 {[%clk 0:02:16]}  Bg5 {[%clk 0:02:32]} 23. Bf2 {[%clk 0:02:03]}  Qd7 {[%clk 0:02:28]} 24. Ra1 {[%clk 0:01:51]}  Rfb8 {[%clk 0:02:27]} 25. Ra2 {[%clk 0:01:46]}  g6 {[%clk 0:02:27]} 26. Be1 {[%clk 0:01:40]}  Rb3 {[%clk 0:02:26]} 27. Bxa5 {[%clk 0:01:35]}  Be3+ {[%clk 0:02:26]} 28. Kh1 {[%clk 0:01:34]}  Bd4 {[%clk 0:02:14]} 29. Bc3 {[%clk 0:01:33]}  Bxc3 {[%clk 0:02:08]} 30. bxc3 {[%clk 0:01:34]}  Qa7 {[%clk 0:02:03]} 31. a5 {[%clk 0:01:32]}  Qa6 {[%clk 0:02:03]} 32. Qd3 {[%clk 0:01:19]}  Rb2 {[%clk 0:01:58]} 33. Rxb2 {[%clk 0:01:15]}  Rxb2 {[%clk 0:01:58]} 34. Ra1 {[%clk 0:01:15]}  Kg7 {[%clk 0:01:39]} 35. h3 {[%clk 0:01:15]}  h4 {[%clk 0:01:37]} 36. Qe4 {[%clk 0:01:13]}  g5 {[%clk 0:01:31]} 37. Qf5 {[%clk 0:01:07]}  f6 {[%clk 0:01:31]} 38. Qd7+ {[%clk 0:01:05]}  Kg6 {[%clk 0:01:31]} 39. Qe8+ {[%clk 0:01:02]}  Kg7 {[%clk 0:01:30]} 40. Qc6 {[%clk 0:01:02]}  Qxc4 {[%clk 0:01:24]} 41. a6 {[%clk 0:01:00]}  Qe2 {[%clk 0:01:23]} 42. Rg1 {[%clk 0:00:58]}  g4 {[%clk 0:01:19]} 43. Qd7+ {[%clk 0:00:53]}  Kf8 {[%clk 0:01:16]} 44. Qxd6+ {[%clk 0:00:52]}  Kg7 {[%clk 0:01:13]} 45. Qd7+ {[%clk 0:00:52]}  Kf8 {[%clk 0:01:13]} 46. Qxg4 {[%clk 0:00:51]}  Qxa6 {[%clk 0:01:13]} 47. Qxh4 {[%clk 0:00:49]}  Ke7 {[%clk 0:01:10]} 48. Qh7+ {[%clk 0:00:44]}  Kd6 {[%clk 0:01:10]} 49. Qf7 {[%clk 0:00:44]}  Qd3 {[%clk 0:01:01]} 50. Qe6+ {[%clk 0:00:41]}  Kc7 {[%clk 0:01:00]} 51. Qc6+ {[%clk 0:00:41]}  Kb8 {[%clk 0:00:59]} 52. Qd6+ {[%clk 0:00:33]}  Kb7 {[%clk 0:00:46]} 53. Qe7+ {[%clk 0:00:29]}  Kb6 {[%clk 0:00:45]} 54. Qxf6+ {[%clk 0:00:28]}  Kb5 {[%clk 0:00:45]} 55. Qxe5 {[%clk 0:00:23]}  Rb1 {[%clk 0:00:44]} 56. Qb8+ {[%clk 0:00:23]} 1-0


[Site "https://www.chess.com"]

[Event "Titled Tuesday Blitz November 29 Early 2022"]
[White "Gareyev, Timur"]
[Black "Fernandez Siles, Luis"]
[WhiteFideId "14200937"]
[BlackFideId "2209420"]
[WhiteElo "2552"]
[BlackElo "2186"]
[Result "1-0"]
[Round "03"]
[TimeControl "180+1"]
[Date "2022.11.30"]
[WhiteClock "0:00:12"]
[BlackClock "0:00:04"]

1. d4 {[%clk 0:03:00]}  Nf6 {[%clk 0:02:58]} 2. c4 {[%clk 0:02:58]}  g6 {[%clk 0:02:58]} 3. Nc3 {[%clk 0:02:58]}  Bg7 {[%clk 0:02:58]} 4. e4 {[%clk 0:02:58]}  d6 {[%clk 0:02:59]} 5. Be2 {[%clk 0:02:59]}  O-O {[%clk 0:02:58]} 6. Bg5 {[%clk 0:02:59]}  c5 {[%clk 0:02:54]} 7. d5 {[%clk 0:02:54]}  h6 {[%clk 0:02:51]} 8. Bf4 {[%clk 0:02:39]}  e6 {[%clk 0:02:46]} 9. Nf3 {[%clk 0:02:29]}  exd5 {[%clk 0:02:27]} 10. cxd5 {[%clk 0:02:27]}  a6 {[%clk 0:02:26]} 11. a4 {[%clk 0:02:26]}  Bg4 {[%clk 0:02:26]} 12. Nd2 {[%clk 0:02:24]}  Bxe2 {[%clk 0:02:25]} 13. Qxe2 {[%clk 0:02:24]}  Nh5 {[%clk 0:01:55]} 14. Be3 {[%clk 0:02:13]}  Nd7 {[%clk 0:01:49]} 15. O-O {[%clk 0:02:10]}  Re8 {[%clk 0:01:42]} 16. a5 {[%clk 0:01:59]}  Rb8 {[%clk 0:01:40]} 17. h3 {[%clk 0:01:48]}  Qe7 {[%clk 0:01:24]} 18. Rae1 {[%clk 0:01:26]}  b5 {[%clk 0:01:21]} 19. axb6 {[%clk 0:01:24]}  Rxb6 {[%clk 0:01:20]} 20. Nc4 {[%clk 0:01:21]}  Rb4 {[%clk 0:01:21]} 21. Na5 {[%clk 0:01:17]}  Nhf6 {[%clk 0:01:02]} 22. Nc6 {[%clk 0:01:14]}  Qf8 {[%clk 0:00:58]} 23. Nxb4 {[%clk 0:00:59]}  cxb4 {[%clk 0:00:58]} 24. Na4 {[%clk 0:00:49]}  Rxe4 {[%clk 0:00:57]} 25. Rd1 {[%clk 0:00:34]}  Qa8 {[%clk 0:00:51]} 26. Qc2 {[%clk 0:00:22]}  Re5 {[%clk 0:00:43]} 27. Qc6 {[%clk 0:00:22]}  Qe8 {[%clk 0:00:40]} 28. Qxd6 {[%clk 0:00:19]}  Rxe3 {[%clk 0:00:33]} 29. fxe3 {[%clk 0:00:19]}  Qxe3+ {[%clk 0:00:33]} 30. Kh1 {[%clk 0:00:19]}  Ne4 {[%clk 0:00:17]} 31. Qxd7 {[%clk 0:00:13]}  Ng3+ {[%clk 0:00:16]} 32. Kh2 {[%clk 0:00:13]}  f5 {[%clk 0:00:04]} 33. Rf3 {[%clk 0:00:12]} 1-0


[Site "https://www.chess.com"]

[Event "Titled Tuesday Blitz November 29 Early 2022"]
[White "Godzwon, Iwo"]
[Black "Troltenier, Dirk"]
[WhiteFideId "21802483"]
[BlackFideId "4606400"]
[WhiteElo "2284"]
[BlackElo "2332"]
[Result "1-0"]
[Round "03"]
[TimeControl "180+1"]
[Date "2022.11.30"]
[WhiteClock "0:01:14"]
[BlackClock "0:00:15"]

1. e4 {[%clk 0:03:00]}  e5 {[%clk 0:02:59]} 2. Nf3 {[%clk 0:03:00]}  d6 {[%clk 0:03:00]} 3. d4 {[%clk 0:03:00]}  exd4 {[%clk 0:03:00]} 4. Nxd4 {[%clk 0:03:01]}  Nf6 {[%clk 0:03:00]} 5. Nc3 {[%clk 0:03:01]}  Be7 {[%clk 0:03:01]} 6. Be2 {[%clk 0:02:56]}  O-O {[%clk 0:03:00]} 7. O-O {[%clk 0:02:57]}  Re8 {[%clk 0:03:00]} 8. Bf4 {[%clk 0:02:53]}  Nbd7 {[%clk 0:03:00]} 9. Re1 {[%clk 0:02:52]}  Ne5 {[%clk 0:02:57]} 10. Bg3 {[%clk 0:02:51]}  c6 {[%clk 0:02:56]} 11. f4 {[%clk 0:02:51]}  Ng6 {[%clk 0:02:53]} 12. Kh1 {[%clk 0:02:46]}  Bf8 {[%clk 0:02:37]} 13. Bf3 {[%clk 0:02:41]}  Qc7 {[%clk 0:02:29]} 14. Qd2 {[%clk 0:02:36]}  Bg4 {[%clk 0:02:20]} 15. Rad1 {[%clk 0:02:26]}  Bxf3 {[%clk 0:02:12]} 16. gxf3 {[%clk 0:02:26]}  Rad8 {[%clk 0:01:58]} 17. Rg1 {[%clk 0:02:18]}  b5 {[%clk 0:01:52]} 18. f5 {[%clk 0:02:10]}  Ne5 {[%clk 0:01:47]} 19. Bh4 {[%clk 0:02:10]}  Ned7 {[%clk 0:01:36]} 20. Rg2 {[%clk 0:01:52]}  b4 {[%clk 0:01:21]} 21. Nce2 {[%clk 0:01:51]}  d5 {[%clk 0:01:21]} 22. exd5 {[%clk 0:01:45]}  cxd5 {[%clk 0:01:13]} 23. Rdg1 {[%clk 0:01:46]}  Kh8 {[%clk 0:01:07]} 24. Nf4 {[%clk 0:01:39]}  Rc8 {[%clk 0:00:54]} 25. Rg3 {[%clk 0:01:32]}  Qe5 {[%clk 0:00:48]} 26. Qg2 {[%clk 0:01:14]}  Qxf4 {[%clk 0:00:44]} 27. Rxg7 {[%clk 0:01:14]}  Bd6 {[%clk 0:00:15]} 28. Rxh7+ {[%clk 0:01:13]}  Kxh7 {[%clk 0:00:15]} 29. Qg7# {[%clk 0:01:14]} 1-0


[Site "https://www.chess.com"]

[Event "Titled Tuesday Blitz November 29 Early 2022"]
[White "Gurevich, Dmitry"]
[Black "Sellitti, Federico"]
[WhiteFideId "2000407"]
[BlackFideId "821829"]
[WhiteElo "2506"]
[BlackElo "2605"]
[Result "1-0"]
[Round "03"]
[TimeControl "180+1"]
[Date "2022.11.30"]
[WhiteClock "0:00:17"]
[BlackClock "0:00:15"]

1. d4 {[%clk 0:03:00]}  d5 {[%clk 0:02:56]} 2. c4 {[%clk 0:03:00]}  Nc6 {[%clk 0:02:56]} 3. Nc3 {[%clk 0:02:57]}  e5 {[%clk 0:02:52]} 4. cxd5 {[%clk 0:02:55]}  Nxd4 {[%clk 0:02:47]} 5. e3 {[%clk 0:02:55]}  Nf5 {[%clk 0:02:46]} 6. Nf3 {[%clk 0:02:54]}  Bd6 {[%clk 0:02:29]} 7. Bd3 {[%clk 0:02:53]}  Nf6 {[%clk 0:02:25]} 8. Qc2 {[%clk 0:02:49]}  Ne7 {[%clk 0:02:23]} 9. e4 {[%clk 0:02:37]}  Ng6 {[%clk 0:02:21]} 10. h4 {[%clk 0:02:32]}  Bg4 {[%clk 0:02:16]} 11. Ng1 {[%clk 0:02:25]}  h5 {[%clk 0:02:09]} 12. g3 {[%clk 0:02:18]}  a6 {[%clk 0:02:00]} 13. f3 {[%clk 0:02:11]}  Bd7 {[%clk 0:01:59]} 14. Be3 {[%clk 0:02:08]}  Rc8 {[%clk 0:01:48]} 15. Qb3 {[%clk 0:01:59]}  O-O {[%clk 0:01:44]} 16. Nh3 {[%clk 0:01:45]}  Bxh3 {[%clk 0:01:38]} 17. Rxh3 {[%clk 0:01:44]}  Qd7 {[%clk 0:01:32]} 18. Rh2 {[%clk 0:01:41]}  c6 {[%clk 0:01:33]} 19. Bg5 {[%clk 0:01:28]}  Nh7 {[%clk 0:01:09]} 20. Rd1 {[%clk 0:01:17]}  Nxg5 {[%clk 0:00:36]} 21. hxg5 {[%clk 0:01:16]}  h4 {[%clk 0:00:37]} 22. gxh4 {[%clk 0:00:57]}  Nf4 {[%clk 0:00:36]} 23. Ne2 {[%clk 0:00:51]}  c5 {[%clk 0:00:22]} 24. Nxf4 {[%clk 0:00:43]}  exf4 {[%clk 0:00:23]} 25. a4 {[%clk 0:00:27]}  Be5 {[%clk 0:00:22]} 26. a5 {[%clk 0:00:22]}  Bd4 {[%clk 0:00:20]} 27. Ke2 {[%clk 0:00:20]}  Rfe8 {[%clk 0:00:17]} 28. h5 {[%clk 0:00:20]}  Rcd8 {[%clk 0:00:15]} 29. g6 {[%clk 0:00:19]}  Qxd5 {[%clk 0:00:14]} 30. Qxd5 {[%clk 0:00:18]}  Rxd5 {[%clk 0:00:15]} 31. gxf7+ {[%clk 0:00:17]} 1-0


[Site "https://www.chess.com"]